fUST/lending_fUST_20240228
["ID","MTS","AMOUNT","RATE_DAILY","PERIOD"]
[315516617,1709106645175,-638.14,0.00020273,2]
[315516619,1709106645185,-500.0,0.00020273,2]
[315516621,1709106645195,-4918.45,0.00020273,2]
[315516622,1709106645204,-500.0,0.00020273,2]
[315516624,1709106645214,-1314.59,0.00020273,2]
[315516625,1709106645222,-965.58,0.00020273,2]
[315516626,1709106645232,-1667.39,0.00020273,2]
[315516627,1709106645241,-500.0,0.00020273,2]
[315516628,1709106645250,-597.6,0.00020273,2]
[315516629,1709106645260,-2125.74,0.00020273,2]
[315516631,1709106645269,-808.6,0.00020273,2]
[315516632,1709106645278,-500.0,0.00020286,2]
[315516633,1709106645287,-3276.97029382,0.00020334,2]
[315516634,1709106645297,-2970.47875261,0.0002038,2]
[315516635,1709106645306,-1000.0,0.00020454,5]
[315516636,1709106645315,-1000.0,0.00020454,5]
[315516637,1709106645324,-1000.0,0.00020454,5]
[315516639,1709106645337,-1000.0,0.00020454,5]
[315516641,1709106645346,-1000.0,0.00020454,5]
[315516643,1709106645355,-1000.0,0.00020454,5]
[315516645,1709106645365,-1000.0,0.00020454,5]
[315516646,1709106645374,-1000.0,0.00020454,5]
[315516647,1709106645383,-1000.0,0.00020454,5]
[315516648,1709106645393,-1000.0,0.00020454,5]
[315516649,1709106645402,-1000.0,0.00020454,5]
[315516650,1709106645411,-1000.0,0.00020454,5]
[315516651,1709106645421,-1000.0,0.00020454,5]
[315516652,1709106645431,-1000.0,0.00020454,5]
[315516653,1709106645440,-1000.0,0.00020454,5]
[315516654,1709106645450,-1000.0,0.00020454,5]
[315516655,1709106645459,-1000.0,0.00020454,5]
[315516657,1709106645468,-1000.0,0.00020454,5]
[315516659,1709106645478,-5000.0,0.00020454,5]
[315516661,1709106645487,-1000.0,0.00020454,5]
[315516663,1709106645496,-1000.0,0.00020454,5]
[315516665,1709106645506,-1000.0,0.00020454,5]
[315516666,1709106645515,-1000.0,0.00020454,5]
[315516668,1709106645524,-1000.0,0.00020454,5]
[315516670,1709106645534,-5000.0,0.00020454,5]
[315516672,1709106645543,-5000.0,0.00020454,5]
[315516673,1709106645553,-5000.0,0.00020454,5]
[315516675,1709106645562,-5000.0,0.00020454,5]
[315516676,1709106645572,-1000.0,0.00020454,5]
[315516677,1709106645583,-1000.0,0.00020454,5]
[315516678,1709106645593,-5000.0,0.00020454,5]
[315516679,1709106645603,-1000.0,0.00020454,5]
[315516680,1709106645612,-5000.0,0.00020454,5]
[315516681,1709106645622,-5000.0,0.00020454,5]
[315516682,1709106645632,-1000.0,0.00020454,5]
[315516683,1709106645641,-1000.0,0.00020454,5]
[315516684,1709106645650,-1000.0,0.00020454,5]
[315516685,1709106645659,-5000.0,0.00020454,5]
[315516686,1709106645668,-5000.0,0.00020454,5]
[315516687,1709106645677,-5000.0,0.00020454,5]
[315516688,1709106645687,-5000.0,0.00020454,5]
[315516689,1709106645696,-1000.0,0.00020454,5]
[315516690,1709106645705,-152.0,0.00020467,2]
[315516691,1709106645714,-205.96269088,0.00020472,2]
[315516692,1709106645724,-3276.97029382,0.00020475,2]
[315516693,1709106645733,-50000.0,0.00020482,2]
[315516694,1709106645742,-18644.50523106,0.00020482,2]
[315516695,1709106645765,-18353.17335851,0.00020482,2]
[315516696,1709106645776,-1961.28984899,0.00020482,2]
[315516697,1709106645788,-4135.49172077,0.00020482,2]
[315516698,1709106645799,-742.156736,0.00020482,2]
[315516699,1709106646250,-205.628,0.00019001,2]
[315516700,1709106646261,-501.86125293,0.00019178,2]
[315516701,1709106646270,-879.84,0.0002,2]
[315516702,1709106646280,-879.84,0.00020273,2]
[315516703,1709106646290,-1236.83727723,0.00020454,5]
[315516704,1709106646303,-3763.16272277,0.00020454,5]
[315516705,1709106646312,-1529.16266097,0.00020482,2]
[315516706,1709106646324,-4634.2204437,0.00020482,2]
[315516707,1709106646336,-1916.8781818,0.00020482,5]
[315516708,1709106646349,-462.05859008,0.00020482,5]
[315516709,1709106646361,-2065.48508056,0.00020482,5]
[315516710,1709106646400,-45555.57814756,0.00020482,5]
[315516711,1709106646409,-20131.42551998,0.00020483,2]
[315516712,1709106646418,-11659.85389952,0.00020484,5]
[315516713,1709106646500,-4282.63581116,0.00020484,5]
[315516714,1709106646511,-1538.11392,0.00020484,5]
[315517332,1709107841529,-311.20545213,0.00017914,2]
[315517334,1709107841542,-117.25681546,0.00017914,2]
[315517335,1709107841556,-637.525175,0.00017915,2]
[315517336,1709107841566,-5068.08341054,0.00017917,2]
[315517337,1709107841577,-2522.40981283,0.00017917,2]
[315517338,1709107841589,-516.850155,0.00017917,2]
[315517367,1709107844968,-14794.04270043,0.00017917,2]
[315517368,1709107844978,-177.991563,0.00018134,2]
[315517369,1709107844987,-200.0,0.000185,2]
[315517370,1709107844997,-2982.68776864,0.00019078,2]
[315517371,1709107845007,-155.10547172,0.000191,2]
[315517372,1709107845017,-500.0,0.00019178,2]
[315517373,1709107845028,-500.0,0.00019178,2]
[315517374,1709107845040,-500.0,0.00019178,2]
[315517375,1709107845050,-500.0,0.00019178,2]
[315517376,1709107845063,-500.0,0.00019178,2]
[315517377,1709107845072,-500.0,0.00019178,2]
[315517378,1709107845082,-242.96684262,0.00019178,2]
[315517379,1709107845091,-500.0,0.00019178,2]
[315517380,1709107845104,-500.0,0.00019178,2]
[315517381,1709107845113,-500.0,0.00019178,2]
[315517382,1709107845123,-371.80243991,0.00019178,2]
[315517383,1709107845131,-500.0,0.00019178,2]
[315517384,1709107845141,-500.0,0.00019178,2]
[315517385,1709107845150,-861.6,0.00019178,2]
[315517386,1709107845159,-501.44644121,0.00019178,2]
[315517387,1709107845168,-427.2369343,0.00019178,2]
[315517388,1709107845178,-500.0,0.00019178,2]
[315517389,1709107845187,-500.0,0.00019178,2]
[315517390,1709107845197,-596.0,0.00019178,2]
[315517391,1709107845207,-1141.66,0.00019178,2]
[315517392,1709107845216,-501.21329202,0.00019178,2]
[315517393,1709107845226,-1274.0,0.00019178,2]
[315517394,1709107845235,-534.2,0.00019178,2]
[315517395,1709107845244,-550.42773751,0.00019178,2]
[315517396,1709107845256,-500.0,0.00019178,2]
[315517397,1709107845266,-500.0,0.00019178,2]
[315517398,1709107845275,-1166.05,0.00019178,2]
[315517399,1709107845284,-688.69,0.00019178,2]
[315517400,1709107845295,-500.0,0.00019178,2]
[315517401,1709107845306,-1754.05,0.00019178,2]
[315517402,1709107845316,-254.82839624,0.00019178,2]
[315517403,1709107845325,-8337.94,0.00019178,2]
[315517404,1709107845335,-500.0,0.00019178,2]
[315517405,1709107845344,-1436.28,0.00019178,2]
[315517406,1709107845354,-1053.15,0.00019178,2]
[315517407,1709107845487,-500.0,0.00019178,2]
[315517408,1709107845497,-429.8,0.00019178,2]
[315517409,1709107845506,-501.03015626,0.00019178,2]
[315517410,1709107845515,-268.55563024,0.00019178,2]
[315517411,1709107845528,-284.94446207,0.00019178,2]
[315517412,1709107845538,-1320.02,0.00019178,2]
[315517413,1709107845547,-500.0,0.00019178,2]
[315517414,1709107845559,-696.54,0.00019178,2]
[315517415,1709107845568,-500.0,0.00019178,2]
[315517416,1709107845577,-500.0,0.00019178,2]
[315517417,1709107845586,-1044.94,0.00019178,2]
[315517418,1709107845595,-4252.06,0.00019178,2]
[315517419,1709107845604,-7800.94,0.00019178,2]
[315517420,1709107845614,-650.19,0.00019178,2]
[315517421,1709107845623,-1891.71,0.00019178,2]
[315517422,1709107845632,-489.27752712,0.00019178,2]
[315517423,1709107845642,-531.36,0.00019178,2]
[315517424,1709107845651,-401.58717287,0.00019178,2]
[315517464,1709107846331,-98.41282713,0.00019178,2]
[315517466,1709107846341,-500.0,0.00019178,2]
[315517467,1709107846351,-500.0,0.00019178,2]
[315517468,1709107846361,-609.59,0.00019178,2]
[315517469,1709107846370,-368.18825446,0.00019178,2]
[315517470,1709107846383,-424.41174554,0.00019178,2]
[315517471,1709107846392,-155.0,0.00019178,2]
[315517472,1709107846402,-1787.63,0.00019178,2]
[315517473,1709107846411,-583.27390046,0.00019178,2]
[315517474,1709107846423,-5.21609954,0.00019178,2]
[315517475,1709107846433,-2616.27,0.00019178,2]
[315517476,1709107846443,-500.0,0.00019178,2]
[315517477,1709107846452,-76.35267293,0.00019178,2]
[315517563,1709109034862,-425.01678333,0.00018053,2]
[315517565,1709109034872,-300.20729297,0.00018054,2]
[315517567,1709109034881,-11192.5819948,0.00018069,2]
[315517569,1709109034892,-291.87,0.000187,2]
[315517571,1709109034902,-428.46226759,0.00018996,2]
[315517573,1709109034911,-428.46226759,0.00018997,2]
[315517575,1709109034920,-428.46226759,0.00018998,2]
[315517577,1709109034929,-155.05116689,0.00019077,2]
[315517579,1709109034938,-197.82876853,0.00019078,2]
[315517581,1709109034948,-200.47368136,0.000191,2]
[315517583,1709109034957,-3549.58350935,0.0001913,2]
[315517784,1709109038419,-16365.79839291,0.0001913,2]
[315517785,1709109038428,-500.0,0.00019178,2]
[315517786,1709109038438,-500.0,0.00019178,2]
[315517787,1709109038448,-271.91794651,0.00019178,2]
[315517788,1709109038457,-500.63595938,0.00019178,2]
[315517789,1709109038467,-528.13257131,0.00019178,2]
[315517790,1709109038477,-500.0,0.00019178,2]
[315517791,1709109038486,-500.0,0.00019178,2]
[315517792,1709109038496,-500.0,0.00019178,2]
[315517793,1709109038505,-500.54860487,0.00019178,2]
[315517794,1709109038515,-500.88794162,0.00019178,2]
[315517795,1709109038524,-500.0,0.00019178,2]
[315517796,1709109038534,-500.0,0.00019178,2]
[315517797,1709109038543,-560.61513212,0.00019178,2]
[315517798,1709109038553,-500.0,0.00019178,2]
[315517799,1709109038576,-500.0,0.00019178,2]
[315517800,1709109038586,-291.05229882,0.00019178,2]
[315517801,1709109038596,-500.0,0.00019178,2]
[315517802,1709109038606,-633.9,0.00019178,2]
[315517803,1709109038618,-500.0,0.00019178,2]
[315517804,1709109038628,-500.0,0.00019178,2]
[315517805,1709109038638,-500.0,0.00019178,2]
[315517806,1709109038647,-509.62583616,0.00019178,2]
[315517807,1709109038659,-500.0,0.00019178,2]
[315517808,1709109038669,-500.0,0.00019178,2]
[315517809,1709109038679,-500.0,0.00019178,2]
[315517810,1709109038689,-500.0,0.00019178,2]
[315517811,1709109038701,-503.03792721,0.00019178,2]
[315517812,1709109038712,-378.73292585,0.00019178,2]
[315517813,1709109038722,-568.17,0.00019178,2]
[315517814,1709109038731,-500.0,0.00019178,2]
[315517815,1709109038741,-503.35742389,0.00019178,2]
[315517816,1709109038751,-500.0,0.00019178,2]
[315517817,1709109038760,-507.0068055,0.00019178,2]
[315517818,1709109038770,-610.448442,0.00019178,2]
[315517819,1709109038780,-500.0,0.00019178,2]
[315517820,1709109038790,-338.91589306,0.00019178,2]
[315517821,1709109038800,-903.18,0.00019178,2]
[315517822,1709109038813,-500.0,0.00019178,2]
[315517823,1709109038823,-500.0,0.00019178,2]
[315517824,1709109038834,-152.70981236,0.00019178,2]
[315517825,1709109038843,-256.30798704,0.00019178,2]
[315517826,1709109038857,-271.15408319,0.00019178,2]
[315517827,1709109038867,-501.21782802,0.00019178,2]
[315517828,1709109038877,-500.0,0.00019178,2]
[315517829,1709109038886,-500.77538539,0.00019178,2]
[315517830,1709109038896,-500.0,0.00019178,2]
[315517831,1709109038905,-500.0,0.00019178,2]
[315517832,1709109038915,-500.0,0.00019178,2]
[315517833,1709109038924,-2050.3,0.00019178,2]
[315517834,1709109038934,-500.0,0.00019178,2]
[315517835,1709109038943,-504.76,0.00019178,2]
[315517836,1709109038953,-655.68,0.00019178,2]
[315517837,1709109038962,-503.16525402,0.00019178,2]
[315517838,1709109038972,-500.0,0.00019178,2]
[315517839,1709109038981,-500.0,0.00019178,2]
[315517840,1709109038991,-500.0,0.00019178,2]
[315517841,1709109039000,-500.0,0.00019178,2]
[315517842,1709109039010,-500.0,0.00019178,2]
[315517843,1709109039019,-500.53144191,0.00019178,2]
[315517844,1709109039029,-501.4590042,0.00019178,2]
[315517845,1709109039039,-593.45930065,0.00019178,2]
[315517846,1709109039049,-500.0,0.00019178,2]
[315517847,1709109039061,-181.66053597,0.00019178,2]
[315517848,1709109039074,-550.81946403,0.00019178,2]
[315517849,1709109039084,-141.93453592,0.00019178,2]
[315518021,1709109041580,-358.06546408,0.00019178,2]
[315518022,1709109041590,-501.91045605,0.00019178,2]
[315518023,1709109041601,-500.0,0.00019178,2]
[315518024,1709109041610,-318.31546587,0.00019178,2]
[315518025,1709109041653,-1095.20453413,0.00019178,2]
[315518026,1709109041664,-500.0,0.00019178,2]
[315518027,1709109041674,-218.72269322,0.00019178,2]
[315518029,1709109041688,-281.27730678,0.00019178,2]
[315518030,1709109041698,-610.37014023,0.00019178,2]
[315518031,1709109041711,-378.79359255,0.00019178,2]
[315518032,1709109041724,-261.546,0.00019178,2]
[315518220,1709109044232,-655.48026722,0.00019178,2]
[315518222,1709109044243,-500.0,0.00019178,2]
[315518224,1709109044252,-1108.3,0.00019178,2]
[315518226,1709109044261,-8868.13,0.00019178,2]
[315518228,1709109044271,-500.0,0.00019178,2]
[315518230,1709109044298,-1626.73,0.00019178,2]
[315518231,1709109044315,-500.0,0.00019178,2]
[315518233,1709109044324,-1265.61,0.00019178,2]
[315518235,1709109044334,-195.30844926,0.00019178,2]
[315518237,1709109044342,-1999.74597733,0.00019178,2]
[315518241,1709109044354,-6098.01576,0.00019178,2]
[315518272,1709109046602,-182.15826267,0.00019178,2]
[315518273,1709109046613,-500.59452776,0.00019178,2]
[315518274,1709109046628,-500.0,0.00019178,2]
[315518275,1709109046639,-132.84720957,0.00019178,2]
[315518363,1709110215169,894.73,0.00027511,120]
[315518409,1709110235551,-200.13819531,0.00018073,2]
[315518411,1709110235561,-1720.30150067,0.00018073,2]
[315518413,1709110235571,-2573.68962548,0.00018074,2]
[315518415,1709110235580,-251.103357,0.00018076,2]
[315518417,1709110235589,-354.18065278,0.00018986,2]
[315518420,1709110235599,-228.14154743,0.00018992,2]
[315518423,1709110235608,-7210.84315607,0.00019,2]
[315518426,1709110235621,-4097.98522741,0.00019,2]
[315518430,1709110235637,-11792.77857575,0.00019,2]
[315518432,1709110235648,-24005.08187659,0.00019,2]
[315518640,1709110239327,-625.9,0.00019,2]
[315518642,1709110239338,-28700.98524542,0.00019,2]
[315518644,1709110239348,-155.08219356,0.00019077,2]
[315518646,1709110239357,-197.82876851,0.00019078,2]
[315518648,1709110239366,-150.316,0.00019141,2]
[315518650,1709110239374,-151.0,0.0001915,2]
[315518652,1709110239383,-4851.09866603,0.0001915,3]
[315518654,1709110239393,-646.47874491,0.00019178,2]
[315518657,1709110239402,-607.49,0.00019178,2]
[315518659,1709110239411,-217.33489063,0.00019178,2]
[315518662,1709110239433,-544.5,0.00019178,2]
[315518664,1709110239442,-500.0,0.00019178,2]
[315518666,1709110239451,-500.0,0.00019178,2]
[315518668,1709110239460,-500.75103862,0.00019178,2]
[315518671,1709110239470,-246.7922619,0.00019178,2]
[315518672,1709110239480,-500.0,0.00019178,2]
[315518674,1709110239489,-501.03015626,0.00019178,2]
[315518677,1709110239500,-268.55563024,0.00019178,2]
[315518679,1709110239510,-500.0,0.00019178,2]
[315518681,1709110239519,-500.0,0.00019178,2]
[315518683,1709110239528,-500.0,0.00019178,2]
[315518684,1709110239537,-500.0,0.00019178,2]
[315518687,1709110239546,-500.0,0.00019178,2]
[315518689,1709110239556,-500.0,0.00019178,2]
[315518690,1709110239565,-500.0,0.00019178,2]
[315518691,1709110239574,-500.0,0.00019178,2]
[315518693,1709110239583,-500.0,0.00019178,2]
[315518695,1709110239592,-500.0,0.00019178,2]
[315518697,1709110239602,-179.91240265,0.00019178,2]
[315518699,1709110239611,-539.85730857,0.00019178,2]
[315518701,1709110239620,-643.69449468,0.00019178,2]
[315518703,1709110239629,-500.0,0.00019178,2]
[315518705,1709110239638,-1000.0,0.00019178,2]
[315518707,1709110239646,-185.47135293,0.00019178,2]
[315518709,1709110239656,-626.4,0.00019178,2]
[315518711,1709110239665,-500.0,0.00019178,2]
[315518713,1709110239674,-500.0,0.00019178,2]
[315518714,1709110239685,-500.0,0.00019178,2]
[315518717,1709110239695,-500.0,0.00019178,2]
[315518718,1709110239704,-500.0,0.00019178,2]
[315518720,1709110239714,-500.0,0.00019178,2]
[315518723,1709110239723,-504.13512511,0.00019178,2]
[315518724,1709110239732,-500.0,0.00019178,2]
[315518727,1709110239743,-500.33271946,0.00019178,2]
[315518728,1709110239752,-500.0,0.00019178,2]
[315518730,1709110239762,-500.51426472,0.00019178,2]
[315518733,1709110239772,-309.2588508,0.00019178,2]
[315518734,1709110239781,-583.1691005,0.00019178,2]
[315518737,1709110239791,-502.80783652,0.00019178,2]
[315518739,1709110239801,-500.0,0.00019178,2]
[315518740,1709110239812,-500.0,0.00019178,2]
[315518742,1709110239821,-500.0,0.00019178,2]
[315518744,1709110239830,-500.0,0.00019178,2]
[315518745,1709110239839,-500.0,0.00019178,2]
[315518746,1709110239849,-226.90017681,0.00019178,2]
[315518748,1709110239858,-170.19183597,0.00019178,2]
[315518750,1709110239867,-500.0,0.00019178,2]
[315518752,1709110239876,-500.0,0.00019178,2]
[315518753,1709110239886,-601.99140692,0.00019178,2]
[315518754,1709110239895,-500.16449547,0.00019178,2]
[315518755,1709110239905,-501.78089379,0.00019178,2]
[315518757,1709110239915,-500.0,0.00019178,2]
[315518759,1709110239925,-500.0,0.00019178,2]
[315518760,1709110239934,-500.0,0.00019178,2]
[315518761,1709110239943,-500.0,0.00019178,2]
[315518762,1709110239953,-500.5484407,0.00019178,2]
[315518763,1709110239963,-500.0,0.00019178,2]
[315518764,1709110239973,-500.0,0.00019178,2]
[315518765,1709110239983,-500.0,0.00019178,2]
[315518766,1709110239996,-411.91624469,0.00019178,2]
[315518767,1709110240006,-172.16623809,0.00019178,2]
[315518768,1709110240017,-500.0,0.00019178,2]
[315518770,1709110240026,-500.0,0.00019178,2]
[315518772,1709110240036,-500.0,0.00019178,2]
[315518774,1709110240045,-865.55,0.00019178,2]
[315518775,1709110240054,-231.53293317,0.00019178,2]
[315518776,1709110240063,-500.69080082,0.00019178,2]
[315518777,1709110240073,-500.0,0.00019178,2]
[315518778,1709110240082,-500.0,0.00019178,2]
[315518779,1709110240092,-500.0,0.00019178,2]
[315518781,1709110240101,-500.0,0.00019178,2]
[315518782,1709110240111,-500.0,0.00019178,2]
[315518783,1709110240121,-500.0,0.00019178,2]
[315518784,1709110240130,-500.0,0.00019178,2]
[315518785,1709110240139,-500.0,0.00019178,2]
[315518786,1709110240149,-500.0,0.00019178,2]
[315518787,1709110240158,-528.02447443,0.00019178,2]
[315518788,1709110240167,-500.0,0.00019178,2]
[315518789,1709110240177,-501.75903567,0.00019178,2]
[315518790,1709110240186,-1995.16,0.00019178,2]
[315518791,1709110240195,-500.0,0.00019178,2]
[315518792,1709110240205,-500.0,0.00019178,2]
[315518793,1709110240214,-701.96,0.00019178,2]
[315518794,1709110240224,-500.0,0.00019178,2]
[315518795,1709110240234,-1106.0,0.00019178,2]
[315518796,1709110240246,-1453.87,0.00019178,2]
[315518797,1709110240257,-500.0,0.00019178,2]
[315518798,1709110240267,-8676.37,0.00019178,2]
[315518799,1709110240277,-500.0,0.00019178,2]
[315518800,1709110240286,-429.8,0.00019178,2]
[315518801,1709110240296,-500.0,0.00019178,2]
[315518802,1709110240306,-1212.87,0.00019178,2]
[315518803,1709110240315,-500.0,0.00019178,2]
[315518804,1709110240325,-1826.77,0.00019178,2]
[315518805,1709110240334,-500.0,0.00019178,2]
[315518806,1709110240343,-723.79,0.00019178,2]
[315518807,1709110240353,-7934.92,0.00019178,2]
[315518808,1709110240362,-500.0,0.00019178,2]
[315518809,1709110240371,-1618.79,0.00019178,2]
[315518810,1709110240381,-500.0,0.00019178,2]
[315518811,1709110240391,-500.0,0.00019178,2]
[315518812,1709110240400,-877.14,0.00019178,2]
[315518813,1709110240410,-500.0,0.00019178,2]
[315518814,1709110240421,-500.0,0.00019178,2]
[315518815,1709110240431,-625.91,0.00019178,2]
[315518816,1709110240441,-210.93018506,0.00019178,2]
[315518817,1709110240453,-500.0,0.00019178,2]
[315518818,1709110240466,-4630.24,0.00019178,2]
[315518819,1709110240475,-500.0,0.00019178,2]
[315518820,1709110240484,-826.96,0.00019178,2]
[315518821,1709110240495,-500.0,0.00019178,2]
[315518822,1709110240505,-2985.04,0.00019178,2]
[315518823,1709110240515,-500.0,0.00019178,2]
[315518824,1709110240524,-1403.97,0.00019178,2]
[315518825,1709110240534,-1990.04,0.00019178,2]
[315518826,1709110240543,-1202.37,0.00019178,2]
[315518827,1709110240552,-674.96,0.00019178,2]
[315518828,1709110240561,-500.0,0.00019178,2]
[315518829,1709110240570,-500.0,0.00019178,2]
[315518830,1709110240579,-757.62,0.00019178,2]
[315518831,1709110240588,-500.0,0.00019178,2]
[315518832,1709110240598,-1237.81,0.00019178,2]
[315518833,1709110240606,-844.88,0.00019178,2]
[315518834,1709110240616,-628.36,0.00019178,2]
[315518835,1709110240624,-518.16819785,0.00019178,2]
[315518836,1709110240633,-166.666666,0.00019178,2]
[315518837,1709110240642,-162.238783,0.00019178,2]
[315518838,1709110240651,-500.0,0.00019232,2]
[315518839,1709110240660,-500.0,0.00019287,2]
[315518840,1709110240670,-500.0,0.00019342,2]
[315518841,1709110240679,-1505.21454803,0.00019352,2]
[315518843,1709110240688,-500.0,0.00019382,2]
[315518845,1709110240698,-500.0,0.00019397,2]
[315518847,1709110240706,-607.49,0.00019452,2]
[315518848,1709110240716,-544.5,0.00019452,2]
[315518849,1709110240725,-500.0,0.00019452,2]
[315518850,1709110240735,-413.83176448,0.00019452,2]
[315518851,1709110240744,-500.0,0.00019452,2]
[315518852,1709110240753,-500.0,0.00019452,2]
[315518853,1709110240762,-509.46707708,0.00019452,2]
[315518855,1709110240771,-500.0,0.00019452,2]
[315518856,1709110240780,-348.39830323,0.00019452,2]
[315518857,1709110240789,-500.0,0.00019452,2]
[315518858,1709110240798,-626.4,0.00019452,2]
[315518859,1709110240808,-309.25297592,0.00019452,2]
[315518860,1709110240817,-500.0,0.00019452,2]
[315518861,1709110240827,-500.42279862,0.00019452,2]
[315518862,1709110240836,-554.84363818,0.00019452,2]
[315518863,1709110240846,-500.0,0.00019452,2]
[315518864,1709110240855,-500.0,0.00019452,2]
[315518865,1709110240864,-500.0,0.00019452,2]
[315518867,1709110240873,-197.24866108,0.00019452,2]
[315518869,1709110240882,-230.99143077,0.00019452,2]
[315518872,1709110240891,-553.35442012,0.00019452,2]
[315518874,1709110240900,-500.0,0.00019452,2]
[315518875,1709110240909,-500.0,0.00019452,2]
[315518877,1709110240918,-500.0,0.00019452,2]
[315518879,1709110240926,-422.4100228,0.00019452,2]
[315518881,1709110240935,-500.0,0.00019452,2]
[315518883,1709110240944,-500.0,0.00019452,2]
[315518885,1709110240955,-865.55,0.00019452,2]
[315518887,1709110240968,-500.0,0.00019452,2]
[315518889,1709110240978,-501.17573476,0.00019452,2]
[315518890,1709110240987,-500.0,0.00019452,2]
[315518891,1709110240998,-1995.16,0.00019452,2]
[315518892,1709110241009,-701.96,0.00019452,2]
[315518893,1709110241018,-500.82442911,0.00019452,2]
[315518894,1709110241029,-1106.0,0.00019452,2]
[315518895,1709110241039,-1453.87,0.00019452,2]
[315518896,1709110241048,-500.0,0.00019452,2]
[315518897,1709110241056,-8046.31711635,0.00019452,2]
[315518898,1709110241773,-500.0,0.00019178,2]
[315518899,1709110241783,-650.97,0.00019178,2]
[315518900,1709110241792,-630.05288365,0.00019452,2]
[315518901,1709110241801,-500.0,0.00019452,2]
[315518902,1709110241810,-833.2516435,0.00019452,2]
[315518903,1709110241821,-303.9214817,0.00019452,2]
[315518905,1709110241888,-75.6968748,0.00019452,2]
[315518907,1709110241898,-500.0,0.00019452,2]
[315518908,1709110241907,-1826.77,0.00019452,2]
[315518909,1709110241916,-500.0,0.00019452,2]
[315518911,1709110241925,-723.79,0.00019452,2]
[315518912,1709110241935,-7934.92,0.00019452,2]
[315518913,1709110241944,-500.0,0.00019452,2]
[315518914,1709110241954,-1618.79,0.00019452,2]
[315518915,1709110241964,-500.0,0.00019452,2]
[315518916,1709110241973,-877.14,0.00019452,2]
[315518917,1709110241981,-500.0,0.00019452,2]
[315518918,1709110241994,-625.91,0.00019452,2]
[315518919,1709110242003,-500.0,0.00019452,2]
[315518920,1709110242013,-4630.24,0.00019452,2]
[315518921,1709110242022,-500.0,0.00019452,2]
[315518922,1709110242032,-826.96,0.00019452,2]
[315518923,1709110242042,-500.0,0.00019452,2]
[315518924,1709110242051,-2985.04,0.00019452,2]
[315518925,1709110242061,-1403.97,0.00019452,2]
[315518926,1709110242070,-1924.70987972,0.00019452,2]
[315518965,1709110244325,-224.65581008,0.00019178,2]
[315518967,1709110244335,-752.21,0.00019178,2]
[315518968,1709110244345,-539.27278006,0.00019178,2]
[315518969,1709110244355,-65.33012028,0.00019452,2]
[315518970,1709110244364,-491.63315534,0.00019452,2]
[315519006,1709110560959,251.103357,0.00016922,2]
[315519009,1709110776864,250.0,0.00016796,2]
[315519025,1709110958329,24900.0,0.00017563,2]
[315519093,1709111433039,-169.14126082,0.00017697,2]
[315519095,1709111433050,-1146.86766711,0.00017698,2]
[315519097,1709111433059,-567.8892,0.00017699,2]
[315519098,1709111433068,-640.4443507,0.000177,2]
[315519100,1709111433078,-166.78182943,0.000177,2]
[315519102,1709111433087,-567.8892,0.00017701,2]
[315519104,1709111433096,-3328.03463002,0.00017702,2]
[315519107,1709111433118,-2544.23857901,0.00017702,2]
[315519109,1709111433127,-1879.28400034,0.00017702,2]
[315519111,1709111433136,-1600.47671813,0.00017724,2]
[315519113,1709111433146,-336.89235811,0.00018896,2]
[315519115,1709111433155,-428.46226759,0.00018897,2]
[315519117,1709111433167,-252.23926045,0.000189,2]